[Event "Late-Titled-Tuesday-Blitz-August-29-2023"]
[Site "Chess.com"]
[Date "2023.08.29"]
[Round "3"]
[White "only_strong_moves"]
[Black "tarno17"]
[Result "1-0"]
[WhiteElo "2527"]
[BlackElo "2183"]
[TimeControl "180+1"]
[EndTime "14:28:09 PDT"]
[Termination "only_strong_moves won on time"]

1. d4 {[%clk 0:03:00.9]} 1... d5 {[%clk 0:02:59.4]} 2. Nc3 {[%clk 0:03:01.5]}
2... Nf6 {[%clk 0:02:57.9]} 3. Bf4 {[%clk 0:03:02.2]} 3... c6 {[%clk 0:02:55.1]}
4. e3 {[%clk 0:03:02.6]} 4... e6 {[%clk 0:02:48.4]} 5. Nf3 {[%clk 0:03:01.7]}
5... Be7 {[%clk 0:02:44.4]} 6. Ne5 {[%clk 0:03:01.7]} 6... Nbd7 {[%clk
0:02:43.6]} 7. Be2 {[%clk 0:03:00.5]} 7... Nf8 {[%clk 0:02:39.7]} 8. O-O {[%clk
0:02:57]} 8... Ng6 {[%clk 0:02:39.7]} 9. Bg3 {[%clk 0:02:55.9]} 9... Nxe5 {[%clk
0:02:02.7]} 10. Bxe5 {[%clk 0:02:52.6]} 10... b6 {[%clk 0:01:52.3]} 11. a4
{[%clk 0:02:50.8]} 11... a5 {[%clk 0:01:47.1]} 12. Nb1 {[%clk 0:02:42.8]} 12...
Ba6 {[%clk 0:01:43.5]} 13. Bxa6 {[%clk 0:02:41.2]} 13... Rxa6 {[%clk 0:01:44.4]}
14. Qe2 {[%clk 0:02:38.4]} 14... Ra7 {[%clk 0:01:24.7]} 15. Nd2 {[%clk
0:02:38.7]} 15... O-O {[%clk 0:01:22.3]} 16. Bxf6 {[%clk 0:02:32.7]} 16... Bxf6
{[%clk 0:01:21.5]} 17. f4 {[%clk 0:02:33.3]} 17... c5 {[%clk 0:01:15.5]} 18. c3
{[%clk 0:02:33.2]} 18... Qd7 {[%clk 0:01:10.7]} 19. Kh1 {[%clk 0:02:32.6]} 19...
Rb8 {[%clk 0:01:06.9]} 20. g4 {[%clk 0:02:25.7]} 20... cxd4 {[%clk 0:01:03.6]}
21. exd4 {[%clk 0:02:25.3]} 21... b5 {[%clk 0:01:01.9]} 22. b3 {[%clk
0:01:46.3]} 22... b4 {[%clk 0:00:55.2]} 23. g5 {[%clk 0:01:45.5]} 23... Be7
{[%clk 0:00:54.6]} 24. cxb4 {[%clk 0:01:22.9]} 24... Bxb4 {[%clk 0:00:52.6]} 25.
Nf3 {[%clk 0:01:21.4]} 25... Bc3 {[%clk 0:00:20.5]} 26. Rac1 {[%clk 0:01:21]}
26... Bb4 {[%clk 0:00:06.9]} 27. f5 {[%clk 0:01:19.9]} 27... exf5 {[%clk
0:00:05.4]} 28. Ne5 {[%clk 0:01:20.5]} 28... Qd6 {[%clk 0:00:03.5]} 29. Nc6
{[%clk 0:01:18.7]} 29... Rab7 {[%clk 0:00:02.1]} 30. Nxb8 {[%clk 0:01:18.4]}
30... Rxb8 {[%clk 0:00:03]} 31. Rxf5 {[%clk 0:01:18.2]} 31... g6 {[%clk
0:00:02.8]} 32. Rf6 {[%clk 0:01:17.7]} 32... Qd7 {[%clk 0:00:02.2]} 33. Rcf1
{[%clk 0:01:13]} 33... Rf8 {[%clk 0:00:01.5]} 34. Qb5 {[%clk 0:01:00]} 34... Qc7
{[%clk 0:00:01.3]} 35. Qxd5 {[%clk 0:00:57.9]} 35... Bc3 {[%clk 0:00:01.7]} 36.
Qc4 {[%clk 0:00:52.8]} 36... Qxc4 {[%clk 0:00:01.2]} 37. bxc4 {[%clk 0:00:53.7]}
37... Bxd4 {[%clk 0:00:01.9]} 38. Ra6 {[%clk 0:00:53.1]} 38... Be3 {[%clk
0:00:02.1]} 39. Rxa5 {[%clk 0:00:52.1]} 39... Kg7 {[%clk 0:00:01.6]} 40. c5
{[%clk 0:00:51.4]} 40... Rc8 {[%clk 0:00:02]} 41. Ra7 {[%clk 0:00:50.2]} 41...
Bxc5 {[%clk 0:00:02]} 42. Rfxf7+ {[%clk 0:00:47.3]} 42... Kg8 {[%clk 0:00:01.8]}
43. Rg7+ {[%clk 0:00:47.6]} 43... Kf8 {[%clk 0:00:01.8]} 44. Raf7+ {[%clk
0:00:48.1]} 44... Ke8 {[%clk 0:00:02.1]} 45. Rg8+ {[%clk 0:00:48.5]} 45... Kxf7
{[%clk 0:00:02.8]} 46. Rxc8 {[%clk 0:00:49]} 46... Bb4 {[%clk 0:00:02.8]} 47.
Rc7+ {[%clk 0:00:49.3]} 47... Ke6 {[%clk 0:00:02.8]} 48. Rxh7 {[%clk 0:00:49.2]}
48... Kf5 {[%clk 0:00:03]} 49. h4 {[%clk 0:00:49.2]} 49... Kg4 {[%clk
0:00:03.1]} 50. Rh6 {[%clk 0:00:47.6]} 50... Kf5 {[%clk 0:00:03]} 51. Kg2 {[%clk
0:00:45.8]} 51... Bc3 {[%clk 0:00:01.9]} 52. Kf3 {[%clk 0:00:45.7]} 52... Bb4
{[%clk 0:00:02]} 53. Ke3 {[%clk 0:00:46.1]} 53... Ba3 {[%clk 0:00:01.2]} 54. Kd4
{[%clk 0:00:45.8]} 54... Bb2+ {[%clk 0:00:01.4]} 55. Kc4 {[%clk 0:00:45.9]}
55... Bc1 {[%clk 0:00:01.2]} 56. a5 {[%clk 0:00:45.9]} 56... Be3 {[%clk
0:00:01.4]} 57. a6 {[%clk 0:00:45.7]} 1-0

[Event "Late-Titled-Tuesday-Blitz-August-29-2023"]
[Site "Chess.com"]
[Date "2023.08.29"]
[Round "3"]
[White "IMRosen"]
[Black "Training_Day"]
[Result "1-0"]
[WhiteElo "2619"]
[BlackElo "2419"]
[TimeControl "180+1"]
[EndTime "14:28:10 PDT"]
[Termination "IMRosen won on time"]

1. d4 {[%clk 0:02:56.6]} 1... d5 {[%clk 0:02:58.4]} 2. Bf4 {[%clk 0:02:53.8]}
2... c5 {[%clk 0:02:54]} 3. Nc3 {[%clk 0:02:53.6]} 3... Nf6 {[%clk 0:02:51.1]}
4. e4 {[%clk 0:02:53.2]} 4... Nxe4 {[%clk 0:02:36.2]} 5. Nxe4 {[%clk 0:02:53.1]}
5... dxe4 {[%clk 0:02:36.4]} 6. dxc5 {[%clk 0:02:52.1]} 6... Qa5+ {[%clk
0:02:20.3]} 7. c3 {[%clk 0:02:50.2]} 7... Qxc5 {[%clk 0:02:18.4]} 8. Qa4+ {[%clk
0:02:45.8]} 8... Nc6 {[%clk 0:02:16.6]} 9. Qxe4 {[%clk 0:02:45.2]} 9... g6
{[%clk 0:02:12.5]} 10. Be3 {[%clk 0:02:35.7]} 10... Qf5 {[%clk 0:02:05.2]} 11.
Bd3 {[%clk 0:02:28.9]} 11... Bg7 {[%clk 0:02:01.5]} 12. Ne2 {[%clk 0:02:15.3]}
12... O-O {[%clk 0:01:52.7]} 13. O-O {[%clk 0:02:14.7]} 13... Rd8 {[%clk
0:01:46.3]} 14. Rfd1 {[%clk 0:02:09.5]} 14... Qxe4 {[%clk 0:01:15.5]} 15. Bxe4
{[%clk 0:02:09.7]} 15... Bd7 {[%clk 0:01:08.8]} 16. h3 {[%clk 0:01:56.9]} 16...
Be8 {[%clk 0:01:04.8]} 17. f4 {[%clk 0:01:52.7]} 17... e6 {[%clk 0:01:00.5]} 18.
Kf2 {[%clk 0:01:48.6]} 18... h5 {[%clk 0:00:59.2]} 19. g3 {[%clk 0:01:47]} 19...
Rac8 {[%clk 0:00:52.9]} 20. Bxc6 {[%clk 0:01:32.8]} 20... Bxc6 {[%clk
0:00:52.3]} 21. Bxa7 {[%clk 0:01:24.1]} 21... Rxd1 {[%clk 0:00:48.5]} 22. Rxd1
{[%clk 0:01:24.7]} 22... Ra8 {[%clk 0:00:48.5]} 23. Bc5 {[%clk 0:01:25.3]} 23...
Rxa2 {[%clk 0:00:47.5]} 24. Ba3 {[%clk 0:01:23]} 24... Bd5 {[%clk 0:00:30.7]}
25. Ke3 {[%clk 0:01:17.9]} 25... Bf8 {[%clk 0:00:26.8]} 26. Bxf8 {[%clk
0:00:58.9]} 26... Kxf8 {[%clk 0:00:27.7]} 27. Rd2 {[%clk 0:00:59.6]} 27... Ke7
{[%clk 0:00:26.3]} 28. Nd4 {[%clk 0:00:59.5]} 28... Ra1 {[%clk 0:00:24.7]} 29.
h4 {[%clk 0:00:53.3]} 29... Rg1 {[%clk 0:00:22.4]} 30. Ne2 {[%clk 0:00:53.6]}
30... Rg2 {[%clk 0:00:21.1]} 31. Rd4 {[%clk 0:00:53.9]} 31... Bc6 {[%clk
0:00:14.2]} 32. Rb4 {[%clk 0:00:53.6]} 32... Kd6 {[%clk 0:00:11.6]} 33. Rd4+
{[%clk 0:00:44]} 33... Ke7 {[%clk 0:00:10.4]} 34. b3 {[%clk 0:00:43.9]} 34...
Kf6 {[%clk 0:00:10.4]} 35. Rd6 {[%clk 0:00:37.3]} 35... Ke7 {[%clk 0:00:09.5]}
36. Rd2 {[%clk 0:00:37.9]} 36... Kf6 {[%clk 0:00:09.9]} 37. c4 {[%clk
0:00:36.6]} 37... e5 {[%clk 0:00:07.5]} 38. Rd6+ {[%clk 0:00:31.8]} 38... Kf5
{[%clk 0:00:07.6]} 39. fxe5 {[%clk 0:00:23.8]} 39... Kxe5 {[%clk 0:00:08.5]} 40.
Rd2 {[%clk 0:00:23.9]} 40... b5 {[%clk 0:00:03.4]} 41. Rc2 {[%clk 0:00:07.8]}
41... bxc4 {[%clk 0:00:02.1]} 42. bxc4 {[%clk 0:00:08.2]} 1-0

[Event "Late-Titled-Tuesday-Blitz-August-29-2023"]
[Site "Chess.com"]
[Date "2023.08.29"]
[Round "3"]
[White "Veleamater"]
[Black "Kombinator01"]
[Result "0-1"]
[WhiteElo "2292"]
[BlackElo "2458"]
[TimeControl "180+1"]
[EndTime "14:28:11 PDT"]
[Termination "Kombinator01 won by resignation"]

1. g3 {[%clk 0:03:00.9]} 1... h5 {[%clk 0:02:58.6]} 2. Bg2 {[%clk 0:03:00.5]}
2... h4 {[%clk 0:02:58.9]} 3. gxh4 {[%clk 0:03:01.4]} 3... e5 {[%clk 0:02:58.4]}
4. d4 {[%clk 0:03:02.2]} 4... exd4 {[%clk 0:02:57.7]} 5. Nf3 {[%clk 0:03:02]}
5... Nc6 {[%clk 0:02:56.4]} 6. c3 {[%clk 0:03:02.6]} 6... dxc3 {[%clk
0:02:54.8]} 7. Nxc3 {[%clk 0:03:03.5]} 7... Bb4 {[%clk 0:02:44.9]} 8. Bg5 {[%clk
0:02:57.5]} 8... f6 {[%clk 0:02:45.2]} 9. Bf4 {[%clk 0:02:46.8]} 9... d6 {[%clk
0:02:43.7]} 10. Qd3 {[%clk 0:02:44.1]} 10... Nge7 {[%clk 0:02:38.7]} 11. Nd4
{[%clk 0:02:26.2]} 11... Bxc3+ {[%clk 0:02:24.2]} 12. bxc3 {[%clk 0:02:21.1]}
12... Ne5 {[%clk 0:02:13.9]} 13. Qg3 {[%clk 0:02:15.6]} 13... c5 {[%clk
0:01:33.1]} 14. Bxe5 {[%clk 0:02:11.8]} 14... dxe5 {[%clk 0:01:26.6]} 15. Nf3
{[%clk 0:02:09]} 15... Kf7 {[%clk 0:01:20.8]} 16. Bh3 {[%clk 0:01:59.3]} 16...
Bxh3 {[%clk 0:01:15.9]} 17. Qxh3 {[%clk 0:01:59]} 17... Qa5 {[%clk 0:01:16]} 18.
O-O {[%clk 0:01:51.2]} 18... Rad8 {[%clk 0:01:10.4]} 19. a4 {[%clk 0:01:49.2]}
19... Ng6 {[%clk 0:01:01.9]} 20. Rab1 {[%clk 0:01:45.6]} 20... Qc7 {[%clk
0:00:57.7]} 21. Ng5+ {[%clk 0:01:41.3]} 21... fxg5 {[%clk 0:00:51.3]} 22. Qf5+
{[%clk 0:01:41.1]} 22... Kg8 {[%clk 0:00:51.8]} 23. Qxg6 {[%clk 0:01:39.9]}
23... Rd6 {[%clk 0:00:42.5]} 24. Qxg5 {[%clk 0:01:38.7]} 24... Qc6 {[%clk
0:00:38.2]} 25. h5 {[%clk 0:01:31.4]} 25... Rxh5 {[%clk 0:00:28.7]} 26. Qxh5
{[%clk 0:01:31.2]} 26... Rg6+ {[%clk 0:00:29.4]} 27. Qxg6 {[%clk 0:01:29.8]}
27... Qxg6+ {[%clk 0:00:30.3]} 28. Kh1 {[%clk 0:01:27.9]} 28... b6 {[%clk
0:00:26.4]} 29. f3 {[%clk 0:01:26]} 29... e4 {[%clk 0:00:25.3]} 30. Rbd1 {[%clk
0:01:24.2]} 30... Qe6 {[%clk 0:00:20.4]} 31. e3 {[%clk 0:01:15.7]} 31... exf3
{[%clk 0:00:19.6]} 32. Rxf3 {[%clk 0:01:15.6]} 32... Qe4 {[%clk 0:00:20.1]} 33.
Kg2 {[%clk 0:01:12.1]} 33... Qg4+ {[%clk 0:00:20.7]} 34. Kf2 {[%clk 0:01:11.7]}
34... Qh4+ {[%clk 0:00:21.4]} 35. Ke2 {[%clk 0:01:11.1]} 35... Qxh2+ {[%clk
0:00:21.6]} 36. Rf2 {[%clk 0:01:10.3]} 36... Qh5+ {[%clk 0:00:22.1]} 37. Ke1
{[%clk 0:01:10.2]} 37... Qh1+ {[%clk 0:00:22.1]} 38. Ke2 {[%clk 0:01:10.3]}
38... Qh5+ {[%clk 0:00:21.8]} 39. Ke1 {[%clk 0:01:07.8]} 39... Qe5 {[%clk
0:00:22.3]} 40. Rd8+ {[%clk 0:01:06.7]} 40... Kh7 {[%clk 0:00:22.9]} 41. Kd2
{[%clk 0:01:05.1]} 41... g6 {[%clk 0:00:17.4]} 42. Rd7+ {[%clk 0:01:03.5]} 42...
Kh6 {[%clk 0:00:17.2]} 43. Rf4 {[%clk 0:01:03.1]} 43... g5 {[%clk 0:00:16.1]}
44. Rff7 {[%clk 0:00:58.6]} 44... g4 {[%clk 0:00:12.6]} 45. c4 {[%clk
0:00:53.8]} 45... Kg5 {[%clk 0:00:09.8]} 46. Rg7+ {[%clk 0:00:51.8]} 46... Kh4
{[%clk 0:00:07.1]} 47. Rdf7 {[%clk 0:00:49.2]} 47... Qb2+ {[%clk 0:00:06.1]} 48.
Kd3 {[%clk 0:00:49]} 48... Qb3+ {[%clk 0:00:06.7]} 49. Kd2 {[%clk 0:00:48.4]}
49... Qxc4 {[%clk 0:00:06.4]} 50. Rf4 {[%clk 0:00:47.7]} 50... Qd5+ {[%clk
0:00:05.6]} 51. Ke2 {[%clk 0:00:46.9]} 51... Qa2+ {[%clk 0:00:05.7]} 52. Kf1
{[%clk 0:00:45.3]} 52... Qb1+ {[%clk 0:00:05.8]} 53. Kg2 {[%clk 0:00:44.5]}
53... Qc2+ {[%clk 0:00:06]} 54. Rf2 {[%clk 0:00:43.6]} 54... Qe4+ {[%clk
0:00:06.6]} 55. Kh2 {[%clk 0:00:40.3]} 55... Qe5+ {[%clk 0:00:06.9]} 56. Kg2
{[%clk 0:00:40.3]} 56... Qxg7 {[%clk 0:00:07.3]} 57. Rf4 {[%clk 0:00:39.5]}
57... Qb2+ {[%clk 0:00:07.1]} 0-1

[Event "Late-Titled-Tuesday-Blitz-August-29-2023"]
[Site "Chess.com"]
[Date "2023.08.29"]
[Round "3"]
[White "Quattroporte300"]
[Black "MikeSailer"]
[Result "0-1"]
[WhiteElo "2386"]
[BlackElo "2175"]
[TimeControl "180+1"]
[EndTime "14:28:11 PDT"]
[Termination "MikeSailer won by resignation"]

1. e4 {[%clk 0:02:59.2]} 1... d5 {[%clk 0:03:00.2]} 2. exd5 {[%clk 0:02:58.5]}
2... Qxd5 {[%clk 0:02:59.7]} 3. Nf3 {[%clk 0:02:58.9]} 3... Nc6 {[%clk
0:02:59.6]} 4. d4 {[%clk 0:02:56.7]} 4... Bg4 {[%clk 0:02:58.6]} 5. Be2 {[%clk
0:02:56.9]} 5... O-O-O {[%clk 0:02:57.9]} 6. Be3 {[%clk 0:02:53.4]} 6... Nf6
{[%clk 0:02:57.8]} 7. O-O {[%clk 0:02:52.2]} 7... Qf5 {[%clk 0:02:26.4]} 8. c4
{[%clk 0:02:49.5]} 8... e5 {[%clk 0:02:25.9]} 9. d5 {[%clk 0:02:49.1]} 9... e4
{[%clk 0:02:25.3]} 10. Nd4 {[%clk 0:02:47.2]} 10... Nxd4 {[%clk 0:02:22.6]} 11.
Bxd4 {[%clk 0:02:46.9]} 11... Bd6 {[%clk 0:02:22.5]} 12. Bxf6 {[%clk 0:02:36.9]}
12... Bxe2 {[%clk 0:02:18.4]} 13. Qxe2 {[%clk 0:02:37.8]} 13... Qxf6 {[%clk
0:02:15.1]} 14. Nc3 {[%clk 0:02:37.9]} 14... Rhe8 {[%clk 0:02:13.3]} 15. Nxe4
{[%clk 0:02:36.8]} 15... Bxh2+ {[%clk 0:01:49.6]} 16. Kxh2 {[%clk 0:02:35.9]}
16... Qh4+ {[%clk 0:01:36.6]} 17. Kg1 {[%clk 0:02:35]} 17... Rxe4 {[%clk
0:01:35.7]} 18. Qf3 {[%clk 0:02:33.6]} 18... Rf4 {[%clk 0:01:07.3]} 19. Qg3
{[%clk 0:02:18]} 19... Rxc4 {[%clk 0:01:02.2]} 20. Rad1 {[%clk 0:02:12.6]} 20...
Qxg3 {[%clk 0:00:59]} 21. fxg3 {[%clk 0:02:12.4]} 21... f6 {[%clk 0:00:59]} 22.
Rfe1 {[%clk 0:02:10.8]} 22... Kd7 {[%clk 0:00:55.9]} 23. Kf2 {[%clk 0:02:07.1]}
23... Rc2+ {[%clk 0:00:56]} 24. Re2 {[%clk 0:02:07]} 24... Rxe2+ {[%clk
0:00:55.8]} 25. Kxe2 {[%clk 0:02:07.2]} 25... Kd6 {[%clk 0:00:53.6]} 26. Kf3
{[%clk 0:01:56]} 26... Re8 {[%clk 0:00:52.4]} 27. g4 {[%clk 0:01:51.6]} 27...
Re5 {[%clk 0:00:51.9]} 28. Rh1 {[%clk 0:01:29.2]} 28... h6 {[%clk 0:00:50.8]}
29. Kf4 {[%clk 0:01:22.8]} 29... Rxd5 {[%clk 0:00:50.2]} 30. Re1 {[%clk
0:01:23.2]} 30... Kd7 {[%clk 0:00:45.8]} 31. a3 {[%clk 0:01:17.4]} 31... c5
{[%clk 0:00:45.8]} 32. g3 {[%clk 0:01:16]} 32... b5 {[%clk 0:00:43.4]} 33. Re3
{[%clk 0:00:56.8]} 33... c4 {[%clk 0:00:42.8]} 34. Rc3 {[%clk 0:00:54.9]} 34...
Kd6 {[%clk 0:00:37]} 35. Re3 {[%clk 0:00:53.5]} 35... g5+ {[%clk 0:00:11.9]} 36.
Kf3 {[%clk 0:00:51.8]} 36... Rd3 {[%clk 0:00:10.4]} 37. Rxd3+ {[%clk 0:00:50]}
37... cxd3 {[%clk 0:00:11.2]} 38. Ke3 {[%clk 0:00:50.7]} 38... Ke5 {[%clk
0:00:10.1]} 39. Kxd3 {[%clk 0:00:50.8]} 39... f5 {[%clk 0:00:11]} 40. gxf5
{[%clk 0:00:48.2]} 40... Kxf5 {[%clk 0:00:11.5]} 41. Ke3 {[%clk 0:00:45.4]}
41... Kg4 {[%clk 0:00:10.9]} 42. Kf2 {[%clk 0:00:44.7]} 42... h5 {[%clk
0:00:11]} 43. b3 {[%clk 0:00:43.5]} 43... a5 {[%clk 0:00:11.1]} 44. a4 {[%clk
0:00:42.9]} 44... b4 {[%clk 0:00:11.6]} 45. Kg2 {[%clk 0:00:43.1]} 45... h4
{[%clk 0:00:11.7]} 46. gxh4 {[%clk 0:00:40.3]} 46... gxh4 {[%clk 0:00:12.5]} 47.
Kh2 {[%clk 0:00:40.9]} 47... Kf4 {[%clk 0:00:12.3]} 48. Kh3 {[%clk 0:00:41.3]}
48... Ke3 {[%clk 0:00:13.2]} 49. Kxh4 {[%clk 0:00:42.2]} 49... Kd3 {[%clk
0:00:14.1]} 50. Kg5 {[%clk 0:00:42.8]} 50... Kc3 {[%clk 0:00:14.9]} 51. Kf4
{[%clk 0:00:43.2]} 51... Kxb3 {[%clk 0:00:15.1]} 0-1

[Event "Late-Titled-Tuesday-Blitz-August-29-2023"]
[Site "Chess.com"]
[Date "2023.08.29"]
[Round "3"]
[White "GM_dmitrij"]
[Black "TanitoluwaAps116"]
[Result "1-0"]
[WhiteElo "3057"]
[BlackElo "2783"]
[TimeControl "180+1"]
[EndTime "14:28:12 PDT"]
[Termination "GM_dmitrij won on time"]

1. e4 {[%clk 0:03:00.9]} 1... c5 {[%clk 0:02:55.7]} 2. c3 {[%clk 0:02:58.9]}
2... Nf6 {[%clk 0:02:54.5]} 3. e5 {[%clk 0:02:58.8]} 3... Nd5 {[%clk 0:02:51.8]}
4. Bc4 {[%clk 0:02:59.4]} 4... Nb6 {[%clk 0:02:45.5]} 5. Bb3 {[%clk 0:02:58.5]}
5... d5 {[%clk 0:02:45.6]} 6. d4 {[%clk 0:02:57.9]} 6... cxd4 {[%clk 0:02:44]}
7. cxd4 {[%clk 0:02:58.8]} 7... Nc6 {[%clk 0:02:43.7]} 8. Bc2 {[%clk 0:02:59.1]}
8... Nb4 {[%clk 0:02:35.3]} 9. Nc3 {[%clk 0:02:58.1]} 9... Nxc2+ {[%clk
0:02:34.8]} 10. Qxc2 {[%clk 0:02:59]} 10... Bd7 {[%clk 0:02:23.3]} 11. Nf3
{[%clk 0:02:53.2]} 11... e6 {[%clk 0:02:22.8]} 12. O-O {[%clk 0:02:48.5]} 12...
Bb4 {[%clk 0:02:19.2]} 13. Bg5 {[%clk 0:02:42.9]} 13... Qc7 {[%clk 0:02:10.6]}
14. Rac1 {[%clk 0:02:42.3]} 14... Rc8 {[%clk 0:02:03.7]} 15. Qd3 {[%clk
0:02:39.2]} 15... Qc4 {[%clk 0:01:45.6]} 16. Qb1 {[%clk 0:02:37.8]} 16... O-O
{[%clk 0:01:35.7]} 17. Bd2 {[%clk 0:02:25.6]} 17... Qa6 {[%clk 0:01:27.9]} 18.
Ng5 {[%clk 0:02:23.6]} 18... g6 {[%clk 0:01:19.8]} 19. Rfd1 {[%clk 0:01:57.3]}
19... Nc4 {[%clk 0:00:56.5]} 20. Be1 {[%clk 0:01:56.6]} 20... Be7 {[%clk
0:00:46.1]} 21. h4 {[%clk 0:01:52.2]} 21... f6 {[%clk 0:00:37.4]} 22. exf6
{[%clk 0:01:50.5]} 22... Bxf6 {[%clk 0:00:37.4]} 23. b3 {[%clk 0:01:43.1]} 23...
Nd6 {[%clk 0:00:27.6]} 24. Nf3 {[%clk 0:01:26.6]} 24... Nf5 {[%clk 0:00:20.3]}
25. g3 {[%clk 0:01:11.5]} 25... Rc6 {[%clk 0:00:15.2]} 26. Na4 {[%clk
0:00:45.9]} 26... b6 {[%clk 0:00:10.8]} 27. Rxc6 {[%clk 0:00:39.1]} 27... Bxc6
{[%clk 0:00:11.7]} 28. Bb4 {[%clk 0:00:39.5]} 28... Rf7 {[%clk 0:00:06.4]} 29.
Nc3 {[%clk 0:00:35.9]} 29... Qb7 {[%clk 0:00:02.3]} 30. Qd3 {[%clk 0:00:30]}
30... a5 {[%clk 0:00:02.2]} 31. Ba3 {[%clk 0:00:30.6]} 31... Qc7 {[%clk
0:00:01.4]} 32. Kg2 {[%clk 0:00:23.6]} 32... h5 {[%clk 0:00:01.3]} 33. Re1
{[%clk 0:00:23.4]} 33... Kg7 {[%clk 0:00:01.8]} 34. Rxe6 {[%clk 0:00:20.7]}
34... Qd7 {[%clk 0:00:02.3]} 35. Re1 {[%clk 0:00:18.7]} 35... Nd6 {[%clk
0:00:02.7]} 36. Bxd6 {[%clk 0:00:16.2]} 36... Qxd6 {[%clk 0:00:03.6]} 37. Ne5
{[%clk 0:00:16.9]} 37... Bxe5 {[%clk 0:00:03.5]} 38. Rxe5 {[%clk 0:00:17.8]}
38... Qf6 {[%clk 0:00:02.2]} 39. Qe3 {[%clk 0:00:17.9]} 39... Qd6 {[%clk
0:00:02.3]} 40. Ne2 {[%clk 0:00:18]} 40... Bb5 {[%clk 0:00:02.3]} 41. Nf4 {[%clk
0:00:18.2]} 41... Rf5 {[%clk 0:00:02]} 42. Re6 {[%clk 0:00:18.4]} 42... Qd7
{[%clk 0:00:01.6]} 43. Rxg6+ {[%clk 0:00:18.4]} 43... Kf7 {[%clk 0:00:01.9]} 44.
Rh6 {[%clk 0:00:18.4]} 44... Kg7 {[%clk 0:00:01.9]} 45. Re6 {[%clk 0:00:18.7]}
45... Kf7 {[%clk 0:00:01.9]} 46. Re5 {[%clk 0:00:19.2]} 46... Rxe5 {[%clk
0:00:01.6]} 47. Qxe5 {[%clk 0:00:20.1]} 1-0

[Event "Late-Titled-Tuesday-Blitz-August-29-2023"]
[Site "Chess.com"]
[Date "2023.08.29"]
[Round "3"]
[White "Michalczak"]
[Black "Ncatt"]
[Result "1/2-1/2"]
[WhiteElo "2517"]
[BlackElo "2424"]
[TimeControl "180+1"]
[EndTime "14:28:14 PDT"]
[Termination "Game drawn by repetition"]

1. e4 {[%clk 0:02:58.4]} 1... c5 {[%clk 0:02:59.4]} 2. c3 {[%clk 0:02:58.3]}
2... d5 {[%clk 0:02:59]} 3. exd5 {[%clk 0:02:58]} 3... Qxd5 {[%clk 0:02:59.9]}
4. Nf3 {[%clk 0:02:58.6]} 4... Nf6 {[%clk 0:02:59.9]} 5. Na3 {[%clk 0:02:59.1]}
5... e6 {[%clk 0:02:59.5]} 6. Bc4 {[%clk 0:02:58.8]} 6... Qd8 {[%clk 0:02:57.9]}
7. O-O {[%clk 0:02:58.4]} 7... Nc6 {[%clk 0:02:57.6]} 8. Qe2 {[%clk 0:02:58.6]}
8... Be7 {[%clk 0:02:56.5]} 9. Rd1 {[%clk 0:02:58.4]} 9... O-O {[%clk
0:02:55.7]} 10. d4 {[%clk 0:02:58.6]} 10... cxd4 {[%clk 0:02:53.9]} 11. Nb5
{[%clk 0:02:58.7]} 11... a6 {[%clk 0:02:39.5]} 12. Nbxd4 {[%clk 0:02:58.7]}
12... Qc7 {[%clk 0:02:36.7]} 13. Nxc6 {[%clk 0:02:54.5]} 13... Qxc6 {[%clk
0:02:35]} 14. Ne5 {[%clk 0:02:54.6]} 14... Qc5 {[%clk 0:02:32.9]} 15. b4 {[%clk
0:02:52.5]} 15... Qc7 {[%clk 0:02:31.1]} 16. Bf4 {[%clk 0:02:52.2]} 16... b5
{[%clk 0:02:18.6]} 17. Ng6 {[%clk 0:02:04.8]} 17... Qxc4 {[%clk 0:02:17.9]} 18.
Nxe7+ {[%clk 0:01:57]} 18... Kh8 {[%clk 0:02:17.5]} 19. Qf3 {[%clk 0:01:37.6]}
19... Ra7 {[%clk 0:02:16.6]} 20. Nc6 {[%clk 0:01:34.7]} 20... Bb7 {[%clk
0:02:11]} 21. Rd6 {[%clk 0:01:22.1]} 21... Ne8 {[%clk 0:01:48.2]} 22. Rad1
{[%clk 0:00:51]} 22... Nxd6 {[%clk 0:01:45.4]} 23. Rxd6 {[%clk 0:00:51.9]} 23...
Raa8 {[%clk 0:01:20.9]} 24. Na5 {[%clk 0:00:46.8]} 24... Bxf3 {[%clk 0:01:19.9]}
25. Nxc4 {[%clk 0:00:47.1]} 25... Bd5 {[%clk 0:01:05.3]} 26. Nb6 {[%clk
0:00:46.9]} 26... Rad8 {[%clk 0:01:04.5]} 27. Nd7 {[%clk 0:00:38]} 27... Rfe8
{[%clk 0:01:03]} 28. Ne5 {[%clk 0:00:37.5]} 28... Rxd6 {[%clk 0:00:51.1]} 29.
Nxf7+ {[%clk 0:00:37.8]} 29... Kg8 {[%clk 0:00:52]} 30. Nxd6 {[%clk 0:00:38.7]}
30... Rf8 {[%clk 0:00:51.6]} 31. Be5 {[%clk 0:00:38.9]} 31... Bxa2 {[%clk
0:00:50.5]} 32. f4 {[%clk 0:00:39.8]} 32... Bd5 {[%clk 0:00:45.5]} 33. Kf2
{[%clk 0:00:39.8]} 33... g5 {[%clk 0:00:45.3]} 34. g3 {[%clk 0:00:40]} 34...
gxf4 {[%clk 0:00:45.4]} 35. gxf4 {[%clk 0:00:40.9]} 35... h6 {[%clk 0:00:43.9]}
36. Ke3 {[%clk 0:00:40.9]} 36... Kh7 {[%clk 0:00:35.5]} 37. Kd4 {[%clk
0:00:40.7]} 37... Rg8 {[%clk 0:00:33.5]} 38. f5 {[%clk 0:00:41.2]} 38... Rg2
{[%clk 0:00:30.1]} 39. Kc5 {[%clk 0:00:41.7]} 39... Re2 {[%clk 0:00:24]} 40. Kd4
{[%clk 0:00:33.8]} 40... Bf3 {[%clk 0:00:20.6]} 41. f6 {[%clk 0:00:32.8]} 41...
Bd5 {[%clk 0:00:18.8]} 42. f7 {[%clk 0:00:32.5]} 42... Rf2 {[%clk 0:00:18.8]}
43. Kc5 {[%clk 0:00:28.1]} 43... Kg6 {[%clk 0:00:18.6]} 44. Kb6 {[%clk
0:00:26.5]} 44... Rxf7 {[%clk 0:00:17]} 45. Nxf7 {[%clk 0:00:26.2]} 45... Kxf7
{[%clk 0:00:17.9]} 46. Kxa6 {[%clk 0:00:26.6]} 46... Bc4 {[%clk 0:00:18.1]} 47.
Kb6 {[%clk 0:00:25.8]} 47... Kg6 {[%clk 0:00:19]} 48. Kc5 {[%clk 0:00:26.4]}
48... Kf5 {[%clk 0:00:18.9]} 49. Kd6 {[%clk 0:00:26.8]} 49... h5 {[%clk
0:00:18.9]} 50. Bg3 {[%clk 0:00:26.9]} 50... Kg4 {[%clk 0:00:17.7]} 51. Be5
{[%clk 0:00:27.5]} 51... h4 {[%clk 0:00:17.8]} 52. Kc5 {[%clk 0:00:27.4]} 52...
h3 {[%clk 0:00:17.8]} 53. Kd6 {[%clk 0:00:28.3]} 53... Kf5 {[%clk 0:00:17.8]}
54. Bg3 {[%clk 0:00:27.9]} 54... Kg4 {[%clk 0:00:18.7]} 55. Be5 {[%clk
0:00:28.2]} 55... Kf5 {[%clk 0:00:18.9]} 56. Bg3 {[%clk 0:00:28.5]} 56... Kg4
{[%clk 0:00:19.8]} 57. Be5 {[%clk 0:00:28.8]} 1/2-1/2